bitfinex-derivatives/quotes_ETHF0:USTF0_20240910
["timestamp","ask_amount","ask_price","bid_price","bid_amount"]
[1725974412227,1.09829329,2343.7,2343.5,3.30554489]
[1725974412425,1.09829329,2343.7,2343.6,2.67]
[1725974412724,1.09829329,2343.7,2343.6,3.51617791]
[1725974414024,1.09829329,2343.7,2343.6,3.51617293]
[1725974414423,1.09829329,2343.7,2343.6,3.51617819]
[1725974414921,1.09829329,2343.7,2343.6,7.78337819]
[1725974415930,1.09829329,2343.7,2343.6,3.51617819]
[1725974416321,1.83419329,2343.7,2343.6,3.51617819]
[1725974416629,2.38333994,2343.7,2343.6,0.21066132]
[1725974416823,1.84068415,2343.7,2343.5,2.67]
[1725974417028,1.1047867,2343.6,2343.5,2.67]
[1725974417327,2.38333994,2343.7,2343.6,0.21460949]
[1725974417526,1.84072199,2343.7,2343.6,0.85013291]
[1725974418229,2.38333994,2343.7,2343.6,0.85013291]
[1725974418529,0.7359,2343.7,2343.6,0.85013291]
[1725974418727,1.84080742,2343.7,2343.6,0.85013291]
[1725974419529,1.84080742,2343.7,2343.6,0.21460949]
[1725974419530,2.38333994,2343.7,2343.6,0.21460949]
[1725974419739,1.84085208,2343.7,2343.6,0.63553129]
[1725974420035,1.84085208,2343.7,2343.6,0.84708895]
[1725974420433,1.84085208,2343.7,2343.6,0.21155766]
[1725974420628,1.84085208,2343.7,2343.6,0.63551875]
[1725974420833,1.84085208,2343.7,2343.6,0.84869836]
[1725974421028,1.10495208,2343.7,2343.6,0.84869836]
[1725974421230,1.10495208,2343.7,2343.6,3.51869836]
[1725974423840,1.10495208,2343.8,2343.6,13.78589836]
[1725974424034,1.48475713,2344.2,2343.7,8.50910695]
[1725974424337,0.38,2344.2,2344.1,2.67]
[1725974424526,0.38,2344.2,2344.1,3.30551875]
[1725974426229,0.38,2344.2,2344.1,2.67]
[1725974426637,1.10475713,2344.4,2344.1,2.67]
[1725974426832,0.3861,2344.4,2344.3,2.67]
[1725974427035,1.49085713,2344.4,2344.3,2.67]
[1725974427235,0.3861,2344.4,2344.3,2.67]
[1725974427437,1.49085713,2344.4,2344.3,2.67]
[1725974427635,1.49085713,2344.4,2344.2,2.67]
[1725974427838,1.10475713,2344.3,2344.2,2.67]
[1725974430028,0.3861,2344.4,2344.2,2.67]
[1725974430240,0.3861,2344.4,2344.3,2.67]
[1725974431636,1.10475713,2344.8,2344.3,6.9356]
[1725974431934,1.10475713,2344.8,2344.6,2.67]
[1725974431935,0.7727,2344.7,2344.6,2.67]
[1725974433841,0.7727,2344.7,2344.3,0.3855]
[1725974433842,0.7727,2344.7,2344.3,2.67]
[1725974434140,1.87745713,2344.7,2344.3,2.67]
[1725974434746,0.7727,2344.7,2344.3,2.67]
[1725974435048,0.7727,2344.7,2344.5,2.67]
[1725974445361,0.7727,2344.7,2344.2,0.35380329]
[1725974445552,0.7727,2344.7,2344.3,2.67]
[1725974445754,0.7727,2344.7,2344.1,0.3883]
[1725974445755,0.7727,2344.7,2344.1,2.67]
[1725974446055,0.7727,2344.7,2343.9,2.769]
[1725974446056,1.87745713,2344.7,2343.9,2.769]
[1725974446253,1.10475713,2344.6,2343.9,2.769]
[1725974446460,2.67,2344.4,2343.9,0.099]
[1725974446649,2.67,2344.4,2343.7,2.67]
[1725974446650,1.1415,2344.3,2343.7,2.67]
[1725974446955,1.1415,2344.3,2343.9,2.67]
[1725974447156,1.1415,2344.3,2344.1,2.67]
[1725974447946,1.1415,2344.3,2344.1,2.88134031]
[1725974449153,1.1415,2344.3,2344.1,2.67]
[1725974449363,5.4071,2344.3,2343.9,2.67]
[1725974449561,2.24625713,2344.3,2343.9,2.67]
[1725974449752,1.1415,2344.3,2343.9,2.67]
[1725974449956,2.24625713,2344.3,2343.9,2.67]
[1725974450259,1.10475713,2344.2,2343.7,2.769]
[1725974450461,1.10475713,2344.1,2343.7,2.67]
[1725974451364,1.10475713,2344.0,2343.7,2.67]
[1725974451557,0.394,2343.9,2343.7,2.67]
[1725974451859,0.3888,2343.8,2343.7,2.67]
[1725974459961,0.7842,2343.9,2343.7,2.67]
[1725974460158,0.7842,2343.9,2343.7,3.035]
[1725974460358,0.394,2343.9,2343.7,3.035]
[1725974461766,0.394,2343.9,2343.7,2.67]
[1725974461974,0.3922,2343.8,2343.7,2.67]
[1725974464070,0.3858,2344.1,2343.7,6.9364]
[1725974464371,0.3868,2344.1,2344.0,2.67]
[1725974465068,1.48775713,2344.3,2344.0,2.67]
[1725974465263,1.49155713,2344.4,2344.2,2.67]
[1725974465568,0.3868,2344.4,2344.2,2.67]
[1725974466357,1.48775713,2344.6,2344.3,0.3836]
[1725974466557,1.48775713,2344.6,2344.4,2.67]
[1725974467164,1.10475713,2344.6,2344.4,2.67]
[1725974467365,1.49335713,2344.7,2344.4,2.67]
[1725974467670,1.10475713,2344.6,2344.4,2.67]
[1725974469068,1.10475713,2344.5,2344.4,2.67]
[1725974470975,1.10475713,2344.5,2344.3,2.67]
[1725974471173,1.49965713,2344.4,2344.3,2.67]
[1725974471476,1.49741801,2344.4,2344.3,2.67]
[1725974471677,2.04233994,2344.4,2344.3,2.67]
[1725974471975,2.80485301,2344.4,2344.1,2.67]
[1725974472160,2.65013379,2344.3,2343.9,4.082]
[1725974472369,1.10245715,2344.0,2343.9,4.082]
[1725974472863,1.10245715,2344.1,2343.9,4.082]
[1725974473064,1.10245715,2344.1,2344.0,2.67]
[1725974473461,1.10245715,2344.1,2343.9,6.752]
[1725974473673,1.47755715,2344.0,2343.9,6.752]
[1725974473871,1.47755715,2344.0,2343.9,4.082]
[1725974474370,1.47755715,2344.0,2343.7,2.67]
[1725974474574,0.3996,2343.9,2343.8,2.67]
[1725974475575,1.10245715,2344.1,2343.8,2.67]
[1725974475769,1.48305715,2344.1,2344.0,2.67]
[1725974475969,1.10245715,2344.3,2344.0,2.67]
[1725974476172,1.65374705,2344.4,2344.2,2.67]
[1725974476173,1.10245715,2344.4,2344.2,2.67]
[1725974476377,2.03434705,2344.5,2344.2,2.67]
[1725974476378,1.48305715,2344.5,2344.3,0.3936]
[1725974476577,1.48305715,2344.5,2344.4,2.67]
[1725974477264,0.3806,2344.5,2344.4,2.67]
[1725974477464,1.10245715,2344.6,2344.4,2.67]
[1725974478368,1.48305715,2344.7,2344.4,2.67]
[1725974478576,1.48305715,2344.7,2344.6,2.67]
[1725974478872,0.3806,2344.7,2344.6,2.67]
[1725974481272,0.3806,2344.7,2344.6,6.9348]
[1725974482182,1.10245715,2344.8,2344.6,2.67]
[1725974482481,0.399,2344.8,2344.6,2.67]
[1725974483676,0.399,2344.8,2344.6,6.9348]
[1725974484977,0.399,2344.8,2344.6,2.67]
[1725974491785,0.399,2344.8,2344.3,0.3936]
[1725974491786,4.2648,2344.7,2344.3,2.67]
[1725974491987,0.3731,2344.6,2344.3,2.67]
[1725974492187,0.7422,2344.6,2344.3,2.67]
[1725974493192,0.7422,2344.6,2344.5,2.67]
[1725974498091,1.10245715,2344.7,2344.5,2.67]
[1725974498292,2.05274705,2344.8,2344.6,2.67]
[1725974498293,0.399,2344.8,2344.6,2.67]
[1725974498793,0.399,2344.8,2344.6,6.9348]
[1725974501994,0.399,2344.8,2344.6,2.67]
[1725974503787,4.2648,2344.7,2344.5,2.67]
[1725974503992,1.47085715,2344.6,2344.3,2.67]
[1725974504489,0.3856,2344.5,2344.3,2.67]
[1725974504691,0.3841,2344.4,2344.3,2.67]
[1725974505192,1.10245715,2344.6,2344.3,2.67]
[1725974505387,0.4019,2344.5,2344.4,2.67]
[1725974506800,1.10245715,2344.7,2344.4,6.9356]
[1725974507000,1.50435715,2344.7,2344.6,2.67]
[1725974508898,0.4019,2344.7,2344.6,2.67]
[1725974509099,1.50435715,2344.7,2344.6,2.67]
[1725974510300,0.4019,2344.7,2344.6,3.31033439]
[1725974510495,0.4019,2344.7,2344.6,3.31033295]
[1725974511298,1.10245715,2344.8,2344.6,3.31033295]
[1725974511599,1.10245715,2344.8,2344.6,2.67]
[1725974513407,1.10245715,2344.7,2344.6,2.67]
[1725974513606,1.10245715,2344.7,2344.6,3.31033911]
[1725974513903,1.10245715,2344.7,2344.6,2.67]
[1725974514405,1.10245715,2344.8,2344.6,3.31034172]
[1725974514607,2.7562042,2344.8,2344.6,2.67]
[1725974514808,1.10245715,2344.7,2344.6,2.67]
[1725974515709,1.65374705,2344.7,2344.6,2.67]
[1725974516216,1.10421627,2344.7,2344.6,2.67]
[1725974517803,1.10421627,2344.9,2344.6,8.5996269]
[1725974518005,1.10421627,2345.0,2344.8,2.67]
[1725974518405,1.10421627,2344.9,2344.8,2.67]
[1725974519408,1.10421627,2344.9,2344.8,3.30969387]
[1725974519907,1.10421627,2345.0,2344.8,3.30969387]
[1725974520222,1.10421627,2344.9,2344.8,2.67]
[1725974520399,2.40989045,2344.9,2344.7,2.67]
[1725974520599,2.81256749,2344.8,2344.7,2.67]
[1725974520798,2.81256749,2344.8,2344.7,3.32114677]
[1725974521211,3.02676586,2344.8,2344.7,4.36297387]
[1725974521512,2.81345347,2344.8,2344.7,4.36297387]
[1725974521709,3.02676283,2344.8,2344.7,4.36297387]
[1725974522612,1.36840936,2344.8,2344.7,3.32114677]
[1725974522999,3.56499595,2344.8,2344.7,3.32114677]
[1725974523209,3.56499595,2344.8,2344.7,4.36299082]
[1725974523397,1.10581728,2344.8,2344.7,12.59999419]
[1725974523598,1.10581728,2345.0,2344.7,14.26489587]
[1725974523806,1.10581728,2345.0,2344.9,3.78786173]
[1725974524014,1.10581728,2345.1,2344.9,6.78305592]
[1725974524211,1.10581728,2345.1,2345.0,4.11305592]
[1725974524409,1.10581728,2345.2,2345.0,4.32957917]
[1725974524609,1.10581728,2345.2,2345.1,4.36299082]
[1725974525517,2.04696857,2345.3,2345.1,4.36299082]
[1725974525518,1.49411728,2345.3,2345.1,4.36299082]
[1725974525719,1.65866857,2345.4,2345.2,4.264]
[1725974526009,2.74573324,2345.7,2345.3,5.38679842]
[1725974526010,1.10533672,2345.7,2345.3,5.38679842]
[1725974526217,1.10533672,2345.7,2345.5,2.67]
[1725974526405,1.10533672,2345.7,2345.6,0.65100962]
[1725974526807,1.10533672,2345.8,2345.6,0.65100962]
[1725974527009,1.10533672,2345.8,2345.7,2.67]
[1725974527207,1.10533672,2345.8,2345.7,3.32095435]
[1725974527412,1.10533672,2346.2,2345.7,8.83700007]
[1725974527607,1.10533672,2346.2,2346.1,2.67]
[1725974527914,1.50263672,2346.2,2346.1,2.67]
[1725974528306,0.3973,2346.2,2346.1,2.88455219]
[1725974530610,4.6597,2346.2,2346.1,2.67]
[1725974530810,11.76503672,2346.2,2345.8,2.67]
[1725974531117,0.384,2346.1,2345.8,2.67]
[1725974531519,0.384,2346.1,2345.4,0.68080143]
[1725974531520,0.3706,2346.0,2345.4,0.68080143]
[1725974531814,0.3706,2346.0,2345.9,2.67]
[1725974532013,4.633,2346.0,2345.9,2.67]
[1725974532314,0.3706,2346.0,2345.9,2.67]
[1725974533108,4.633,2346.0,2345.9,2.67]
[1725974534211,0.3706,2346.0,2345.9,2.67]
[1725974538012,4.633,2346.0,2345.8,2.67]
[1725974538205,0.3706,2346.0,2345.8,2.67]
[1725974538414,4.633,2346.0,2345.8,2.67]
[1725974539116,0.3706,2346.0,2345.8,2.67]
[1725974539314,4.2624,2345.9,2345.8,2.67]
[1725974539721,0.3706,2346.0,2345.8,2.67]
[1725974539917,0.3706,2346.0,2345.9,2.67]
[1725974549019,0.3973,2346.2,2345.9,2.67]
[1725974549219,0.3973,2346.2,2345.6,0.3946]
[1725974549220,0.3973,2346.2,2346.1,2.67]
[1725974550223,0.3973,2346.2,2345.7,2.67]
[1725974550224,10.6597,2346.2,2345.7,2.67]
[1725974550529,0.3973,2346.2,2345.7,2.67]
[1725974550719,0.3973,2346.2,2345.8,2.67]
[1725974551516,0.3973,2346.2,2346.0,2.67]
[1725974553621,4.2624,2346.1,2346.0,2.67]
[1725974554018,4.2624,2346.1,2345.8,2.67]
[1725974554226,0.7728,2346.0,2345.8,2.67]
[1725974554721,5.0352,2346.0,2345.8,2.67]
[1725974556922,0.7728,2346.0,2345.8,2.67]
[1725974561528,1.87813672,2346.0,2345.8,2.67]
[1725974563721,1.50193672,2346.0,2345.8,2.67]
[1725974563929,1.10533672,2346.1,2345.8,2.67]
[1725974564130,1.10533672,2346.1,2346.0,2.67]
[1725974564528,1.50263672,2346.2,2346.0,2.67]
[1725974565022,1.10533672,2346.1,2346.0,2.67]
[1725974566432,1.50263672,2346.2,2346.0,2.67]
[1725974567035,1.10533672,2346.1,2346.0,2.67]
[1725974567631,1.65866857,2346.1,2346.0,2.67]
[1725974567934,1.10305255,2346.1,2346.0,2.67]
[1725974568339,1.65866857,2346.1,2346.0,2.67]
[1725974569430,2.40979255,2346.1,2346.0,2.67]
[1725974569638,2.40979255,2346.1,2346.0,3.32090887]
[1725974569942,0.21320596,2346.1,2346.0,3.32090887]
[1725974570442,2.40979255,2346.1,2346.0,3.32090887]
[1725974572741,2.40979255,2346.1,2346.0,3.32090463]
[1725974574240,2.40979255,2346.1,2346.0,1.88090463]
[1725974574541,2.40979471,2346.1,2346.0,1.88090463]
[1725974574743,0.21320812,2346.1,2346.0,0.65090463]
[1725974575037,2.21150876,2346.1,2346.0,1.88090463]
[1725974575240,2.42471688,2346.1,2346.0,1.88090463]
[1725974575439,0.21320812,2346.1,2346.0,1.88090463]
[1725974575644,2.21173283,2346.1,2346.0,1.88090463]
[1725974575835,0.21320812,2346.1,2346.0,1.88090463]
[1725974578236,5.37917268,2346.1,2346.0,1.88090463]
[1725974578547,0.21320812,2346.1,2346.0,1.88090463]
[1725974578945,2.21203556,2346.1,2346.0,1.88090463]
[1725974579144,2.42525331,2346.1,2346.0,2.9223579]
[1725974579349,2.42524663,2346.1,2346.0,1.23]
[1725974579538,0.21320144,2346.1,2346.0,1.23]
[1725974580036,2.21199178,2346.1,2346.0,3.57325503]
[1725974580236,2.21199178,2346.1,2346.0,3.96379383]
[1725974580237,2.42519322,2346.1,2346.0,3.96379383]
[1725974580440,2.42519322,2346.1,2346.0,2.92233468]
[1725974580641,2.42519322,2346.1,2346.0,1.88089795]
[1725974581146,2.42519322,2346.1,2346.0,2.92233598]
[1725974581545,1.87243534,2346.1,2346.0,2.92233598]
[1725974581748,1.87242683,2346.1,2346.0,2.92233598]
[1725974581940,1.87242683,2346.1,2346.0,3.30673598]
[1725974582143,2.21199178,2346.1,2346.0,2.92233598]
[1725974582446,2.61399178,2346.1,2346.0,1.88089795]
[1725974582654,2.61399178,2346.1,2345.7,1.50121787]
[1725974582655,4.87759293,2346.1,2345.7,1.11681787]
[1725974582859,0.402,2346.1,2345.9,1.23]
[1725974583150,0.402,2346.1,2345.6,1.11681787]
[1725974583151,3.14773324,2346.1,2346.0,1.88089665]
[1725974583353,5.78106798,2346.1,2346.0,1.88089665]
[1725974583553,2.8269366,2346.1,2346.0,1.88089665]
[1725974584244,0.61522289,2346.1,2346.0,1.88089665]
[1725974584452,2.61367247,2346.1,2346.0,1.88089665]
[1725974584751,2.61367247,2346.1,2346.0,1.880913]
[1725974584752,0.61522289,2346.1,2346.0,1.880913]
[1725974586258,0.61522289,2346.1,2346.0,1.23]
[1725974586450,2.21171951,2346.1,2346.0,1.23]
[1725974586752,2.4249424,2346.1,2346.0,2.9223381]
[1725974587446,2.21171951,2346.1,2346.0,2.9223381]
[1725974587644,2.21171951,2346.1,2346.0,1.88089842]
[1725974587855,2.21171951,2346.1,2346.0,2.92232907]
[1725974588050,2.42491965,2346.1,2346.0,2.92232907]
[1725974588851,2.21171951,2346.1,2346.0,2.92232907]
[1725974589054,1.10582201,2346.1,2346.0,9.60326634]
[1725974589349,1.10582201,2346.2,2346.0,10.16163149]
[1725974589552,1.50652201,2346.3,2346.1,5.3412695]
[1725974589747,1.10582201,2346.5,2346.2,4.2624]
[1725974589949,1.10582201,2346.5,2346.3,2.7312711]
[1725974590256,1.65862247,2346.4,2346.2,1.1170711]
[1725974590454,1.47744703,2346.3,2346.1,1.1170711]
[1725974590642,1.47744703,2346.3,2346.2,1.69215863]
[1725974590851,1.23744703,2346.3,2346.2,1.69215863]
[1725974591059,1.10564703,2346.3,2346.2,7.25617653]
[1725974591357,1.10564703,2346.4,2346.2,8.37324763]
[1725974591655,1.10564703,2346.4,2346.3,2.92215863]
[1725974592453,1.10487534,2346.4,2346.3,1.88083024]
[1725974592656,1.65862247,2346.4,2346.3,1.88083024]
[1725974592851,1.65862247,2346.4,2346.3,2.09054726]
[1725974593160,0.21317415,2346.4,2346.3,1.43971702]
[1725974593454,1.65704701,2346.4,2346.3,2.09056854]
[1725974593752,1.65704701,2346.5,2346.3,2.09056854]
[1725974593956,1.65704701,2346.4,2346.3,0.20971702]
[1725974594156,2.02844701,2346.4,2346.3,0.65083761]
[1725974594357,2.02844701,2346.4,2346.3,0.86471103]
[1725974594548,0.3714,2346.4,2346.3,0.86471103]
[1725974594747,1.47581048,2346.4,2346.3,0.86471103]
[1725974595450,0.3714,2346.4,2346.3,1.90599555]
[1725974595646,1.47581048,2346.4,2346.3,2.09471103]
[1725974596156,0.3714,2346.4,2346.3,2.0946804]
[1725974596753,0.3714,2346.4,2346.3,3.13594316]
[1725974596952,0.3714,2346.4,2346.3,2.09466947]
[1725974599557,0.3714,2346.4,2346.3,1.44387342]
[1725974599854,0.3714,2346.4,2346.3,2.09466749]
[1725974601051,0.3714,2346.4,2346.3,3.13592062]
[1725974601250,1.47681048,2346.6,2346.3,2.09466749]
[1725974601451,1.47681048,2346.6,2346.5,1.23]
[1725974601659,0.3724,2346.6,2346.5,1.23]
[1725974602153,0.3724,2346.6,2346.5,0.21525797]
[1725974602154,5.73841048,2346.6,2346.5,0.21525797]
[1725974602348,6.29104701,2346.6,2346.5,1.23]
[1725974602544,6.29104701,2346.6,2346.5,1.44007848]
[1725974602950,4.84716303,2346.6,2346.5,1.44007848]
[1725974603150,6.28747256,2346.6,2346.5,1.44007848]
[1725974603346,6.50064027,2346.6,2346.5,1.44007848]
[1725974603755,6.28747256,2346.6,2346.5,1.44007848]
[1725974604055,1.47430709,2346.6,2346.5,0.21007848]
[1725974604258,6.50064122,2346.6,2346.3,1.23]
[1725974604555,6.50064122,2346.6,2346.3,0.2109755]
[1725974604556,1.10193693,2346.4,2346.3,0.2109755]
[1725974604858,1.10193693,2346.4,2345.9,1.2160711]
[1725974605057,0.3903,2346.3,2346.0,1.6921307]
[1725974605355,0.3903,2346.3,2346.1,1.6921307]
[1725974605652,0.3903,2346.3,2346.2,1.69211736]
[1725974605847,0.3903,2346.3,2346.2,2.92211736]
[1725974606051,1.86093693,2346.6,2346.2,7.18451736]
[1725974606356,1.86093693,2346.6,2346.4,1.23]
[1725974606658,1.10193693,2346.5,2346.4,1.23]
[1725974607553,1.10193693,2346.5,2346.4,1.88079524]
[1725974607749,1.86093693,2346.6,2346.4,1.88079524]
[1725974607954,1.86093693,2346.6,2346.4,1.23]
[1725974608760,1.10193693,2346.5,2346.4,1.23]
[1725974609750,1.10193693,2346.5,2346.4,1.88079585]
[1725974609961,1.10193693,2346.5,2346.4,1.88079449]
[1725974610464,1.86093693,2346.6,2346.4,1.88079449]
[1725974610662,1.86093693,2346.6,2346.4,1.23]
[1725974611258,1.10193693,2346.5,2346.4,1.23]
[1725974612766,1.10193693,2346.5,2346.4,1.88079231]
[1725974613856,1.10193693,2346.5,2346.4,1.23]
[1725974614268,1.10193693,2346.5,2346.4,1.88079204]
[1725974615861,2.41190539,2346.6,2346.4,1.88079204]
[1725974615862,1.86093693,2346.6,2346.4,1.88079204]
[1725974616163,1.86093693,2346.6,2346.5,0.65079204]
[1725974616465,0.759,2346.6,2346.4,1.23]
[1725974616665,0.759,2346.6,2346.5,0.65075758]
[1725974619655,0.759,2346.6,2346.4,1.23]
[1725974619857,0.759,2346.6,2346.5,0.65074248]
[1725974622068,1.10193693,2346.9,2346.5,1.69190231]
[1725974622370,0.7972,2346.6,2346.4,1.5202711]
[1725974622567,0.7972,2346.6,2346.5,1.69187541]
[1725974622972,0.7972,2346.6,2346.5,1.69188734]
[1725974623175,1.48393693,2346.9,2346.5,5.95348734]
[1725974623467,1.48393693,2346.9,2346.4,1.87018723]
[1725974623468,0.7972,2346.8,2346.6,1.69188734]
[1725974623669,0.7972,2346.8,2346.7,0.6507259]
[1725974623865,0.7972,2346.8,2346.7,5.95342855]
[1725974624264,0.7972,2346.8,2346.7,4.9123259]
[1725974624562,5.0588,2346.8,2346.7,0.0445259]
[1725974624763,2.45010539,2346.8,2346.7,1.23]
[1725974624958,2.6632464,2346.8,2346.7,1.23]
[1725974625376,2.45010539,2346.8,2346.7,1.23]
[1725974631670,2.05240539,2346.8,2346.7,5.4916]
[1725974632474,1.50220818,2346.8,2346.7,5.4916]
[1725974633375,1.50220818,2346.8,2346.7,2.26028074]
[1725974633571,1.50220818,2346.8,2346.7,2.26027603]
[1725974635880,0.3995,2346.8,2346.7,2.26027603]
[1725974636076,0.3995,2346.8,2346.7,6.52187603]
[1725974636272,0.3995,2346.8,2346.7,2.26027603]
[1725974636273,1.50220818,2346.8,2346.7,2.26027603]
[1725974636476,2.05240539,2346.8,2346.7,1.23]
[1725974636772,0.61263691,2346.8,2346.7,1.87394302]
[1725974636979,2.05399483,2346.8,2346.7,1.87394302]
[1725974637174,2.26713174,2346.8,2346.7,1.87394302]
[1725974637674,2.05399483,2346.8,2346.7,1.87394302]
[1725974638481,2.26712792,2346.8,2346.7,1.87394302]
[1725974638683,2.05399483,2346.8,2346.7,1.87394302]
[1725974639784,2.05399483,2346.8,2346.7,1.23]
[1725974640081,2.05399483,2346.8,2346.7,1.87393243]
[1725974640782,2.26712495,2346.8,2346.7,1.87393243]
[1725974640975,2.05399483,2346.8,2346.7,1.87393243]
[1725974641383,2.26712794,2346.8,2346.7,1.87393243]
[1725974641574,2.05399483,2346.8,2346.7,1.87393243]
[1725974642185,2.05399483,2346.8,2346.7,1.23]
[1725974642579,2.05399483,2346.8,2346.7,1.87392447]
[1725974642977,2.05399483,2346.8,2346.7,2.90419191]
[1725974643286,2.05399483,2346.8,2346.7,1.87392447]
[1725974643878,2.26712643,2346.8,2346.7,1.87392447]
[1725974644987,2.05399483,2346.8,2346.7,1.87392447]
[1725974645182,2.05399483,2346.8,2346.7,2.90419966]
[1725974645690,2.05399483,2346.8,2346.7,2.90419598]
[1725974647380,2.05399483,2346.8,2346.7,1.87392153]
[1725974647787,2.05399483,2346.8,2346.7,2.90420408]
[1725974648286,2.26713255,2346.8,2346.7,1.87392153]
[1725974648787,7.40683324,2346.8,2346.3,1.23]
[1725974648982,1.10358592,2346.4,2346.3,1.23]
[1725974649189,1.10358592,2346.4,2346.3,2.90434277]
[1725974649489,5.4071,2346.4,2346.0,1.23]
[1725974649684,1.10346135,2346.1,2345.9,0.21135916]
[1725974649990,1.10346135,2346.1,2345.9,1.1170711]
[1725974649991,0.7482,2346.0,2345.9,1.1170711]
[1725974650188,0.7482,2346.0,2345.9,4.29795092]
[1725974650588,0.7482,2346.0,2345.9,8.56035092]
[1725974651183,0.7482,2346.0,2345.9,5.52795092]
[1725974651486,0.7482,2346.0,2345.9,4.41087982]
[1725974651887,0.7482,2346.0,2345.9,3.85347313]
[1725974652088,0.7482,2346.0,2345.9,2.09238095]
[1725974652291,0.7482,2346.0,2345.9,3.12284297]
[1725974652485,0.7482,2346.0,2345.9,4.4109344]
[1725974652683,0.7482,2346.0,2345.9,3.12284297]
[1725974652884,1.10346135,2346.2,2345.9,8.67334136]
[1725974653096,0.4016,2346.1,2346.0,1.67450078]
[1725974653778,0.4016,2346.1,2346.0,1.88772707]
[1725974655292,0.4016,2346.1,2346.0,1.67450338]
[1725974655493,1.10346135,2346.2,2346.0,3.11659991]
[1725974655795,1.10346135,2346.3,2346.1,2.05378281]
[1725974655989,1.10346135,2346.3,2346.2,1.87403976]
[1725974658391,1.10346135,2346.3,2346.2,1.23]
[1725974658599,1.10346135,2346.3,2346.2,1.87402029]
[1725974658787,1.65519202,2346.3,2346.1,1.23]
[1725974659097,1.10256131,2346.2,2346.1,1.23]
[1725974659292,1.10256131,2346.2,2346.1,1.43990918]
[1725974659596,1.10256131,2346.2,2346.1,2.08397046]
[1725974660189,1.10256131,2346.3,2346.1,2.08397046]
[1725974660393,1.10256131,2346.3,2346.2,1.23]
[1725974660609,1.1023537,2346.3,2346.2,1.23]
[1725974660897,1.65519202,2346.3,2346.2,1.23]
[1725974661102,1.65519202,2346.3,2346.2,1.44811708]
[1725974661489,1.10242362,2346.3,2346.2,1.44811708]
[1725974662198,1.65519202,2346.3,2346.2,0.21811708]
[1725974662499,1.65519202,2346.3,2346.1,1.23]
[1725974662797,1.10253031,2346.2,2346.1,1.23]
[1725974663095,1.10253031,2346.2,2346.1,1.4387987]
[1725974665496,1.10253031,2346.3,2346.1,1.4387987]
[1725974666404,1.49303031,2346.4,2346.1,1.4387987]
[1725974666594,1.49303031,2346.4,2346.3,1.23]
[1725974667403,1.49303031,2346.4,2346.3,1.44728195]
[1725974668905,1.10253031,2346.4,2346.3,1.44728195]
[1725974669104,1.85943031,2346.5,2346.3,1.44728195]
[1725974669793,0.7569,2346.5,2346.3,1.44728195]
[1725974670501,0.7569,2346.5,2346.4,0.64398091]
[1725974670895,0.7569,2346.5,2346.3,1.44728195]
[1725974671099,0.7569,2346.5,2346.3,1.81070372]
[1725974671601,1.10253031,2346.6,2346.3,1.81070372]
[1725974671799,1.84583031,2346.6,2346.5,1.23]
[1725974672397,0.7433,2346.6,2346.5,1.23]
[1725974672603,0.7433,2346.6,2346.5,1.44681302]
[1725974673104,0.7433,2346.6,2346.5,0.21681302]
[1725974673402,1.84583031,2346.6,2346.5,1.23]
[1725974673608,1.84583031,2346.6,2346.5,1.44235825]
[1725974678813,2.39849202,2346.6,2346.5,1.44235825]
[1725974681920,1.84674535,2346.6,2346.5,1.44235825]
[1725974682122,1.84678194,2346.6,2346.5,1.44235825]
[1725974682323,1.84678194,2346.6,2346.5,2.08633393]
[1725974682823,2.61164966,2346.6,2346.1,0.7547]
[1725974683014,1.10352985,2346.4,2346.3,1.23]
[1725974683321,1.10352985,2346.5,2346.3,1.87401635]
[1725974683518,1.47562985,2346.6,2346.4,1.87401635]
[1725974683718,1.47562985,2346.6,2346.5,1.01431635]
[1725974683719,0.3721,2346.6,2346.5,1.01431635]
[1725974683923,0.3721,2346.6,2346.5,1.40841635]
[1725974684729,0.3721,2346.6,2346.5,0.7644]
[1725974684914,0.3721,2346.6,2346.5,1.40836094]
[1725974685315,1.10352985,2346.7,2346.5,5.66996094]
[1725974685521,1.50662985,2346.7,2346.6,1.87396094]
[1725974685717,1.10352985,2346.7,2346.6,1.87396094]
[1725974685924,1.10352985,2346.8,2346.6,2.90423741]
[1725974686227,1.10352985,2346.8,2346.7,1.87396094]
[1725974686423,1.10352985,2346.8,2346.7,2.90422188]
[1725974687523,1.10352985,2346.8,2346.7,1.87396094]
[1725974687726,1.10352985,2346.8,2346.7,2.90420478]
[1725974688031,1.10352985,2346.8,2346.7,0.64390358]
[1725974688220,1.65519202,2346.8,2346.5,1.23]
[1725974688417,1.10355509,2346.6,2346.5,1.23]
[1725974688627,1.10355509,2346.6,2346.5,1.87396079]
[1725974688831,0.7387,2346.6,2346.5,1.87396079]
[1725974689936,1.84199755,2346.6,2346.5,1.87396079]
[1725974690529,1.84199755,2346.6,2346.5,2.90428498]
[1725974690921,1.10329755,2346.6,2346.5,7.16588498]
[1725974691123,1.10329755,2346.6,2346.5,5.4916]
[1725974691328,1.10329755,2346.7,2346.5,7.16585978]
[1725974691633,1.10329755,2346.7,2346.6,2.27394607]
[1725974692137,1.10329755,2346.7,2346.6,1.87394607]
[1725974692326,1.65519202,2346.8,2346.6,1.87394607]
[1725974692528,1.86833531,2346.8,2346.7,0.64394607]
[1725974693030,1.65519202,2346.8,2346.7,0.64394607]
[1725974693531,1.86832857,2346.8,2346.7,0.64394607]
[1725974693721,1.65519202,2346.8,2346.7,0.64394607]
[1725974694030,2.41299202,2346.9,2346.7,0.64394607]
[1725974694226,0.7578,2346.9,2346.8,1.23]
[1725974694420,2.62525505,2346.9,2346.8,1.87393688]
[1725974694630,0.9709328,2346.9,2346.8,1.87393688]
[1725974694830,0.9709328,2346.9,2346.8,1.87393382]
[1725974695834,0.9709328,2346.9,2346.8,1.23]
[1725974696029,0.9709328,2346.9,2346.8,1.87394932]
[1725974696219,2.62478173,2346.9,2346.8,1.23]
[1725974696928,3.17785805,2346.9,2346.7,1.23]
[1725974697126,3.17785805,2346.9,2346.3,1.2160711]
[1725974697127,0.21313535,2346.8,2346.5,1.23]